bitfinex-derivatives/quotes_BTCF0:USTF0_20241009
["timestamp","ask_amount","ask_price","bid_price","bid_amount"]
[1728447787140,0.560962,62401.0,62396.0,0.0325]
[1728447787141,0.080168,62397.0,62396.0,0.0325]
[1728447788438,0.080168,62397.0,62396.0,0.0601319]
[1728447788644,0.081168,62397.0,62396.0,0.0661319]
[1728447789749,0.082168,62397.0,62396.0,0.0661319]
[1728447792332,0.082168,62397.0,62396.0,0.0385]
[1728447798853,0.15419245,62397.0,62396.0,0.0385]
[1728447803148,0.20340795,62397.0,62396.0,0.0385]
[1728447804153,0.15419245,62397.0,62396.0,0.0385]
[1728447804946,0.15419245,62397.0,62396.0,0.1585]
[1728447805546,0.15419245,62397.0,62396.0,0.0385]
[1728447806864,0.082168,62397.0,62396.0,0.08657061]
[1728447808460,0.082168,62397.0,62396.0,0.0385]
[1728447808849,0.082168,62397.0,62396.0,0.08659254]
[1728447809250,0.082168,62397.0,62396.0,0.0385]
[1728447813764,0.15419535,62397.0,62396.0,0.0385]
[1728447814759,0.20340882,62397.0,62396.0,0.0385]
[1728447815364,0.15419535,62397.0,62396.0,0.0385]
[1728447816265,0.11493254,62397.0,62396.0,0.0385]
[1728447816465,0.15419553,62397.0,62396.0,0.0385]
[1728447817367,0.15419555,62397.0,62396.0,0.0385]
[1728447817662,0.11493254,62397.0,62396.0,0.0385]
[1728447818057,0.1149216,62397.0,62396.0,0.0385]
[1728447818660,0.15418434,62397.0,62396.0,0.0385]
[1728447819366,0.1149216,62397.0,62396.0,0.0385]
[1728447819756,0.15418464,62397.0,62396.0,0.0385]
[1728447820062,0.1149216,62397.0,62396.0,0.0385]
[1728447820265,0.15418461,62397.0,62396.0,0.0385]
[1728447820567,0.1149216,62397.0,62396.0,0.0385]
[1728447821760,0.082168,62397.0,62396.0,0.10259415]
[1728447821962,0.082168,62397.0,62396.0,0.0385]
[1728447822363,0.082168,62397.0,62396.0,0.10259415]
[1728447823571,0.082168,62397.0,62396.0,0.0385]
[1728447828873,0.20335644,62397.0,62396.0,0.0385]
[1728447829074,0.22639918,62397.0,62396.0,0.0385]
[1728447829273,0.20335644,62397.0,62396.0,0.0385]
[1728447829464,0.22638334,62397.0,62396.0,0.0385]
[1728447829665,0.27559742,62397.0,62396.0,0.0385]
[1728447829871,0.34757178,62397.0,62396.0,0.0385]
[1728447830377,0.20335644,62397.0,62396.0,0.0385]
[1728447830977,0.34757389,62397.0,62396.0,0.0385]
[1728447831173,0.15414236,62397.0,62396.0,0.0385]
[1728447833373,0.15415525,62397.0,62396.0,0.0385]
[1728447833570,0.20336929,62397.0,62396.0,0.0385]
[1728447833775,0.15415525,62397.0,62396.0,0.0385]
[1728447834369,0.20336917,62397.0,62396.0,0.0385]
[1728447834570,0.20336897,62397.0,62396.0,0.0385]
[1728447836471,0.20336227,62397.0,62396.0,0.0385]
[1728447836780,0.082168,62397.0,62396.0,0.0385]
[1728447841279,0.082168,62397.0,62396.0,0.10259415]
[1728447841485,0.082168,62397.0,62396.0,0.006]
[1728447842179,0.082168,62397.0,62396.0,0.07009415]
[1728447848487,0.082168,62397.0,62396.0,0.006]
[1728447851886,0.11486079,62397.0,62396.0,0.006]
[1728447852086,0.15412436,62397.0,62396.0,0.006]
[1728447852283,0.15412075,62397.0,62396.0,0.006]
[1728447852786,0.20333507,62397.0,62396.0,0.006]
[1728447857288,0.20333942,62397.0,62396.0,0.006]
[1728447858894,0.082168,62397.0,62396.0,0.006]
[1728447867018,0.15415295,62397.0,62396.0,0.006]
[1728447869930,0.20336712,62397.0,62396.0,0.006]
[1728447870825,0.15415295,62397.0,62396.0,0.006]
[1728447874129,0.082168,62397.0,62396.0,0.006]
[1728447876031,0.082168,62397.0,62396.0,0.07009415]
[1728447876821,0.082168,62397.0,62396.0,0.006]
[1728447877334,0.082168,62397.0,62396.0,0.07009415]
[1728447877631,0.082168,62397.0,62396.0,0.006]
[1728447878623,0.082168,62397.0,62396.0,0.07009415]
[1728447878826,0.082168,62397.0,62396.0,0.006]
[1728447881834,0.082168,62397.0,62396.0,0.07009415]
[1728447882038,0.002,62397.0,62396.0,0.126]
[1728447889441,0.12385115,62397.0,62396.0,0.126]
[1728447890539,0.12385056,62397.0,62396.0,0.126]
[1728447890735,0.14624291,62397.0,62396.0,0.126]
[1728447891036,0.12385056,62397.0,62396.0,0.126]
[1728447891734,0.26809347,62397.0,62396.0,0.126]
[1728447892126,0.12382427,62397.0,62396.0,0.126]
[1728447893730,0.12382427,62397.0,62396.0,0.07487844]
[1728447896930,0.12382427,62397.0,62396.0,0.1229863]
[1728447896931,0.002,62397.0,62396.0,0.1229863]
[1728447897128,0.002,62397.0,62396.0,0.12298407]
[1728447897736,0.002,62397.0,62396.0,0.07487844]
[1728447898736,0.002,62397.0,62396.0,0.12298461]
[1728447900945,0.002,62397.0,62396.0,0.07487844]
[1728447901638,0.002,62397.0,62396.0,0.13902226]
[1728447902043,0.002,62397.0,62396.0,0.07487844]
[1728447902342,0.0112,62403.0,62402.0,0.080161]
[1728447902554,0.0112,62407.0,62405.0,0.080156]
[1728447902738,0.01360443,62410.0,62406.0,0.0301]
[1728447902930,0.01360443,62410.0,62409.0,0.12]
[1728447903136,0.00240443,62410.0,62409.0,0.12]
[1728447903743,0.00740443,62410.0,62409.0,0.12]
[1728447903945,0.00740443,62410.0,62406.0,0.0301]
[1728447903946,0.10415479,62410.0,62406.0,0.0301]
[1728447904146,0.10415479,62410.0,62409.0,0.12]
[1728447904450,0.18655423,62410.0,62409.0,0.12]
[1728447905145,0.22261831,62410.0,62409.0,0.12]
[1728447905342,0.18336271,62410.0,62409.0,0.12]
[1728447905644,0.12873594,62410.0,62409.0,0.12]
[1728447905952,0.13873594,62410.0,62409.0,0.12]
[1728447906343,0.13636402,62410.0,62409.0,0.12]
[1728447906537,0.1678822,62410.0,62409.0,0.12]
[1728447906740,0.29224622,62410.0,62409.0,0.12]
[1728447906941,0.28724622,62410.0,62409.0,0.12]
[1728447907534,0.12736402,62410.0,62409.0,0.12]
[1728447908340,0.12536402,62410.0,62409.0,0.12]
[1728447908541,0.12236402,62410.0,62409.0,0.12]
[1728447908741,0.12436402,62410.0,62409.0,0.12]
[1728447909041,0.12336402,62410.0,62409.0,0.12]
[1728447909242,0.12136402,62410.0,62409.0,0.121]
[1728447909438,0.04920166,62410.0,62409.0,0.121]
[1728447909637,0.12136402,62411.0,62409.0,0.14839951]
[1728447910042,0.07216236,62410.0,62409.0,0.14839951]
[1728447910342,0.07220021,62411.0,62409.0,0.14839951]
[1728447910551,0.15500654,62414.0,62409.0,0.14839951]
[1728447910552,0.07220021,62410.0,62409.0,0.14839951]
[1728447912048,0.0112,62414.0,62409.0,0.14839951]
[1728447912353,0.0112,62414.0,62397.0,0.08187935]
[1728447912354,0.4808,62410.0,62397.0,0.08187935]
[1728447912653,0.560961,62402.0,62397.0,0.08187935]
[1728447912849,0.560961,62402.0,62397.0,0.0301]
[1728447913337,0.560961,62402.0,62396.0,0.12]
[1728447913748,0.200161,62402.0,62396.0,0.12]
[1728447914658,0.080161,62402.0,62399.0,0.12]
[1728447915142,0.081161,62402.0,62399.0,0.12]
[1728447915348,0.082161,62402.0,62399.0,0.12]
[1728447915755,0.081161,62402.0,62399.0,0.12]
[1728447916156,0.080161,62402.0,62399.0,0.12]
[1728447919161,0.07171496,62401.0,62399.0,0.12]
[1728447919961,0.03925936,62400.0,62399.0,0.12]
[1728447920161,0.03245914,62400.0,62399.0,0.12]
[1728447920358,0.03925936,62400.0,62399.0,0.200164]
[1728447920859,0.03245914,62400.0,62399.0,0.200164]
[1728447921053,0.07171736,62402.0,62399.0,0.200164]
[1728447921253,0.07171736,62401.0,62400.0,0.0318]
[1728447921458,0.03245914,62401.0,62400.0,0.1518]
[1728447921755,0.03245914,62402.0,62400.0,0.231964]
[1728447921957,0.03245914,62401.0,62400.0,0.231964]
[1728447922154,0.03245914,62402.0,62400.0,0.231964]
[1728447922360,0.03245914,62401.0,62400.0,0.231964]
[1728447923063,0.03245914,62402.0,62400.0,0.231964]
[1728447923365,0.03245914,62401.0,62400.0,0.231964]
[1728447923659,0.03245914,62402.0,62400.0,0.231964]
[1728447923862,0.03245914,62401.0,62400.0,0.231964]
[1728447924252,0.03245914,62402.0,62400.0,0.231964]
[1728447924452,0.03245914,62401.0,62400.0,0.231964]
[1728447924663,0.03245914,62402.0,62400.0,0.231964]
[1728447924959,0.03245914,62401.0,62400.0,0.231964]
[1728447925758,0.0112,62403.0,62400.0,0.231964]
[1728447925759,0.03245914,62402.0,62400.0,0.231964]
[1728447927166,0.0112,62403.0,62401.0,0.04807935]
[1728447927361,0.0112,62403.0,62400.0,0.28004335]
[1728447927562,0.0112,62403.0,62401.0,0.04807935]
[1728447928054,0.0112,62403.0,62402.0,0.04807935]
[1728447928374,0.091356,62407.0,62401.0,0.04807935]
[1728447928562,0.091356,62407.0,62404.0,0.12]
[1728447928758,0.080156,62407.0,62404.0,0.12]
[1728447930661,0.082156,62407.0,62404.0,0.12]
[1728447930865,0.085156,62407.0,62404.0,0.12]
[1728447937463,0.085156,62407.0,62404.0,0.14735834]
[1728447941967,0.12,62405.0,62400.0,0.111964]
[1728447942169,0.12138146,62404.0,62400.0,0.111964]
[1728447942368,0.12138146,62403.0,62400.0,0.111964]
[1728447942570,0.12138146,62402.0,62400.0,0.111964]
[1728447942766,0.12138146,62401.0,62400.0,0.111964]
[1728447943371,0.20154446,62401.0,62394.0,0.083871]
[1728447943566,0.14405443,62397.0,62394.0,0.080171]
[1728447943776,0.14405443,62395.0,62394.0,0.080171]
[1728447943975,0.12138146,62395.0,62394.0,0.080171]
[1728447944276,0.12138146,62395.0,62394.0,0.1081116]
[1728447944478,0.12120097,62395.0,62394.0,0.1081116]
[1728447945373,0.12220097,62395.0,62394.0,0.1081116]
[1728447945579,0.14503092,62395.0,62394.0,0.1081116]
[1728447946077,0.26623189,62395.0,62394.0,0.1081116]
[1728447946680,0.26723189,62395.0,62394.0,0.1091116]
[1728447947681,0.12320097,62395.0,62394.0,0.1091116]
[1728447949083,0.002,62395.0,62394.0,0.1091116]
[1728447953093,0.002,62395.0,62394.0,0.2291116]
[1728447957190,0.03481416,62395.0,62394.0,0.2291116]
[1728447959481,0.03480677,62395.0,62394.0,0.2291116]
[1728447962685,0.03495818,62395.0,62394.0,0.2291116]
[1728447962888,0.002,62395.0,62394.0,0.2291116]
[1728447963281,0.0112,62400.0,62394.0,1.5905406]
[1728447963488,0.03301617,62399.0,62398.0,0.080166]
[1728447963696,0.03301617,62399.0,62398.0,0.200166]
[1728447964189,0.0112,62403.0,62398.0,0.2642588]
[1728447964388,0.0112,62403.0,62402.0,0.04807284]
[1728447964697,0.080157,62405.0,62402.0,0.04807284]
[1728447965598,0.080157,62405.0,62403.0,0.04807284]
[1728447966795,0.080157,62405.0,62402.0,0.04807284]
[1728447966990,0.080157,62405.0,62403.0,0.04807284]
[1728447967895,0.080157,62405.0,62402.0,0.04807284]
[1728447968103,0.080157,62405.0,62403.0,0.04807284]
[1728447970401,0.080157,62405.0,62402.0,0.001]
[1728447970787,0.080157,62405.0,62402.0,0.04907284]
[1728447970993,0.080157,62405.0,62402.0,0.04807284]
[1728447971688,0.080157,62405.0,62402.0,0.04907284]
[1728447972319,0.080157,62405.0,62402.0,0.001]
[1728447975798,0.080157,62405.0,62402.0,0.02848798]
[1728447976002,0.080157,62405.0,62402.0,0.001]
[1728447977297,0.12,62406.0,62402.0,0.001]
[1728447977495,0.12,62406.0,62402.0,0.081161]
[1728447979297,0.2798822,62406.0,62402.0,0.081161]
[1728447979498,0.12154916,62405.0,62402.0,0.081161]
[1728447979707,0.12154916,62404.0,62402.0,0.081161]
[1728447979893,0.12154916,62403.0,62402.0,0.081161]
[1728447980291,0.35154916,62403.0,62402.0,0.001]
[1728447980499,0.080168,62397.0,62394.0,0.39265298]
[1728447980706,0.12,62395.0,62394.0,0.38895298]
[1728447981008,0.19234383,62395.0,62394.0,0.38895298]
[1728447981997,0.19334383,62395.0,62394.0,0.38895298]
[1728447982408,0.07311503,62395.0,62394.0,0.50895298]
[1728447982798,0.07311503,62395.0,62394.0,0.38895298]
[1728447984402,0.07411503,62395.0,62394.0,0.38895298]
[1728447985000,0.07411503,62395.0,62394.0,0.02815298]
[1728447985199,0.07411503,62395.0,62392.0,0.3608]
[1728447985399,0.07211503,62394.0,62392.0,0.3608]
[1728447985610,0.07211503,62393.0,62392.0,0.3608]
[1728447986307,0.07211503,62393.0,62391.0,0.12]
[1728447986495,0.07211503,62392.0,62391.0,0.14802796]
[1728447986701,0.07211503,62392.0,62391.0,0.50882796]
[1728447987404,0.001,62393.0,62391.0,0.50882796]
[1728447987609,0.002,62393.0,62391.0,0.50982796]
[1728447987916,0.001,62392.0,62391.0,0.50982796]
[1728447988209,0.001,62392.0,62391.0,0.50882796]
[1728447988512,0.002,62392.0,62391.0,0.50982796]
[1728447988695,0.002,62392.0,62391.0,0.14902796]
[1728447989006,0.001,62392.0,62391.0,0.14902796]
[1728447989202,0.001,62392.0,62391.0,0.50982796]
[1728447989805,0.121,62392.0,62391.0,0.38982796]
[1728447990604,0.122,62392.0,62391.0,0.38982796]
[1728447991408,0.002,62392.0,62391.0,0.38982796]
[1728447992500,0.002,62392.0,62391.0,0.02902796]
[1728447994304,0.03473567,62392.0,62391.0,0.02902796]
[1728447999803,0.03373567,62392.0,62391.0,0.02802796]
[1728448000001,0.03373567,62392.0,62390.0,0.12]
[1728448000203,0.03273567,62391.0,62390.0,0.12]
[1728448001517,0.03573567,62391.0,62390.0,0.12]
[1728448002324,0.005,62391.0,62390.0,0.12]
[1728448002514,0.005,62391.0,62390.0,0.14705383]
[1728448004421,0.005,62391.0,62390.0,0.02705383]
[1728448004612,0.005,62391.0,62389.0,0.080177]
[1728448005407,0.005,62391.0,62390.0,0.12]
[1728448005615,0.003,62391.0,62390.0,0.1514]
[1728448005811,0.003,62391.0,62390.0,0.23156619]
[1728448006416,0.002,62391.0,62390.0,0.31174319]
[1728448006615,0.003,62391.0,62390.0,0.31174319]
[1728448006806,0.003,62391.0,62390.0,0.42200929]
[1728448007013,0.004,62391.0,62390.0,0.42200929]
[1728448007408,0.004,62391.0,62390.0,0.3418431]
[1728448007722,0.004,62391.0,62390.0,0.7026431]
[1728448008319,0.005,62391.0,62390.0,0.7026431]
[1728448009125,0.003,62391.0,62390.0,0.7026431]
[1728448009308,0.03610918,62391.0,62390.0,0.592377]
[1728448010723,0.03310918,62391.0,62390.0,0.592377]
[1728448010921,0.03312846,62395.0,62391.0,0.080175]
[1728448011225,0.03312846,62394.0,62393.0,0.12]
[1728448012723,0.03412846,62394.0,62393.0,0.12]
[1728448013515,0.03612846,62394.0,62393.0,0.12]
[1728448016316,0.03612846,62394.0,62393.0,0.1511]
[1728448017356,0.003,62394.0,62393.0,0.26138103]
[1728448017717,0.003,62394.0,62393.0,0.26137448]
[1728448018323,0.003,62394.0,62393.0,0.26137445]
[1728448021125,0.003,62394.0,62393.0,0.26135426]
[1728448024932,0.002,62394.0,62393.0,0.26135426]
[1728448026025,0.002,62394.0,62393.0,0.26135257]
[1728448026230,0.0112,62396.0,62393.0,0.26135257]
[1728448026431,0.0112,62396.0,62394.0,0.19041634]
[1728448026634,0.0112,62396.0,62394.0,0.08016377]
[1728448027627,0.0112,62396.0,62395.0,0.12]
[1728448027827,0.0112,62400.0,62395.0,0.12]
[1728448028029,0.0112,62400.0,62398.0,0.06413066]
[1728448028337,0.12,62401.0,62398.0,0.06413066]
[1728448029627,0.124,62401.0,62398.0,0.06413066]
[1728448029937,0.005,62400.0,62398.0,0.06413066]
[1728448030326,0.129,62401.0,62398.0,0.06413066]
[1728448031228,0.004,62400.0,62398.0,0.06413066]
[1728448032132,0.129,62401.0,62398.0,0.06413066]
[1728448032442,0.07244857,62400.0,62395.0,0.12]
[1728448032637,0.07244857,62399.0,62395.0,0.12]
[1728448032937,0.07244857,62398.0,62395.0,0.12]
[1728448033235,0.03318821,62397.0,62396.0,0.080169]
[1728448033428,0.03318821,62397.0,62396.0,0.200169]
[1728448035926,0.03329357,62397.0,62396.0,0.200169]
[1728448036239,0.03629357,62397.0,62396.0,0.200169]
[1728448036739,0.03329357,62397.0,62396.0,0.200169]
[1728448037433,0.03329357,62402.0,62396.0,0.200169]
[1728448037635,0.07255159,62401.0,62396.0,0.200169]
[1728448037840,0.07255159,62400.0,62396.0,0.200169]
[1728448038030,0.07255183,62399.0,62396.0,0.200169]
[1728448038237,0.03329357,62398.0,62396.0,0.200169]
[1728448038535,0.03329357,62397.0,62396.0,0.200169]
[1728448038742,0.03329357,62402.0,62397.0,0.080167]
[1728448038936,0.07259937,62401.0,62397.0,0.080167]
[1728448039145,0.07259937,62400.0,62399.0,0.080165]
[1728448039339,0.0112,62403.0,62399.0,0.200165]
[1728448039541,0.0112,62403.0,62401.0,0.06412383]
[1728448039739,0.0328,62404.0,62401.0,0.06412383]
[1728448039940,0.0112,62406.0,62403.0,0.12]
[1728448040143,0.0112,62406.0,62404.0,0.080158]
[1728448040337,0.0074,62409.0,62404.0,0.080158]
[1728448040338,0.0112,62409.0,62404.0,0.080158]
[1728448040535,0.1312,62409.0,62406.0,0.04808611]
[1728448041242,0.0112,62409.0,62407.0,0.04808574]
[1728448041541,0.3608,62410.0,62408.0,0.04808574]
[1728448042847,0.008,62409.0,62408.0,0.04808574]
[1728448043248,0.3668,62410.0,62408.0,0.04808574]
[1728448044241,0.3668,62410.0,62407.0,0.04808574]
[1728448044751,0.006,62410.0,62407.0,0.04808574]
[1728448044945,0.3668,62410.0,62407.0,0.04808574]
[1728448045651,0.011,62409.0,62407.0,0.04808574]
[1728448045858,0.011,62409.0,62408.0,0.04808574]
[1728448046055,0.011,62409.0,62408.0,0.12]
[1728448046553,0.004,62410.0,62408.0,0.1505]
[1728448046746,0.004,62410.0,62408.0,0.21455512]
[1728448047245,0.012,62409.0,62408.0,0.1505]
[1728448047446,0.04566687,62409.0,62408.0,0.08879744]
[1728448047647,0.04566687,62409.0,62408.0,0.1505]
[1728448048046,0.08491903,62409.0,62408.0,0.1505]
[1728448049052,0.07291903,62409.0,62408.0,0.1505]
[1728448049547,0.08491903,62409.0,62408.0,0.1505]
[1728448049944,0.09591903,62409.0,62408.0,0.1505]
[1728448054445,0.023,62409.0,62408.0,0.1505]
[1728448058457,0.023,62409.0,62408.0,0.12]
[1728448059459,0.023,62409.0,62407.0,0.3608]
[1728448059946,0.023,62409.0,62408.0,0.12]
[1728448060561,0.021,62409.0,62408.0,0.12]
[1728448062259,0.022,62409.0,62408.0,0.12]
[1728448062477,0.012,62409.0,62408.0,0.12]
[1728448062678,0.023,62409.0,62408.0,0.12]
[1728448062881,0.14484991,62409.0,62408.0,0.12]
[1728448063475,0.20026262,62409.0,62408.0,0.12]
[1728448063673,0.16686637,62409.0,62408.0,0.12]
[1728448064176,0.28871628,62409.0,62408.0,0.12]
[1728448065484,0.09564911,62409.0,62408.0,0.12]
[1728448069379,0.023,62409.0,62408.0,0.12]
[1728448077984,0.14442403,62409.0,62408.0,0.12]
[1728448084488,0.023,62409.0,62408.0,0.12]
[1728448087490,0.023,62409.0,62407.0,0.080154]
[1728448088795,0.011,62409.0,62407.0,0.080154]
[1728448088989,0.022,62409.0,62407.0,0.080154]
[1728448089790,0.011,62409.0,62407.0,0.080154]
[1728448089991,0.021,62409.0,62407.0,0.080154]
[1728448091498,0.021,62409.0,62407.0,0.12826777]
[1728448093497,0.021,62409.0,62407.0,0.080154]
[1728448095588,0.021,62409.0,62408.0,0.12]
[1728448095793,0.021,62409.0,62408.0,0.16811377]
[1728448096787,0.022,62409.0,62408.0,0.16811377]
[1728448097794,0.023,62409.0,62408.0,0.16811377]
[1728448098397,0.023,62409.0,62408.0,0.12]
[1728448099495,0.07219961,62409.0,62408.0,0.12]
[1728448099695,0.14453185,62409.0,62408.0,0.12]
[1728448100803,0.28864648,62409.0,62408.0,0.12]
[1728448101003,0.14453185,62409.0,62408.0,0.12]
[1728448101194,0.28864311,62409.0,62408.0,0.12]
[1728448102201,0.14453185,62409.0,62408.0,0.12]
[1728448104207,0.09535328,62409.0,62408.0,0.12]
[1728448105802,0.05610183,62409.0,62408.0,0.12]
[1728448106007,0.14455228,62409.0,62408.0,0.12]
[1728448106206,0.09535327,62409.0,62408.0,0.12]
[1728448106411,0.023,62409.0,62408.0,0.23001865]
[1728448106599,0.023,62409.0,62408.0,0.36105272]
[1728448107211,0.0112,62412.0,62411.0,0.08015]
[1728448107396,0.0112,62416.0,62415.0,0.080145]
[1728448107604,0.0112,62420.0,62415.0,0.63105172]
[1728448107802,0.0414,62423.0,62419.0,0.06407097]
[1728448108003,0.0814,62423.0,62422.0,0.12]
[1728448108205,0.0777,62423.0,62422.0,0.12]
[1728448109110,0.0867,62423.0,62422.0,0.12]
[1728448109507,0.0937,62423.0,62422.0,0.121]
[1728448111107,0.0235,62423.0,62422.0,0.121]
[1728448111606,0.0235,62423.0,62422.0,0.18507097]
[1728448111813,0.0235,62423.0,62422.0,0.121]
[1728448112308,0.0115,62423.0,62422.0,0.12]
[1728448112508,0.0155,62423.0,62422.0,0.12]
[1728448113513,0.0155,62423.0,62422.0,0.14777986]
[1728448114417,0.0155,62423.0,62422.0,0.19576075]
[1728448114614,0.0155,62423.0,62422.0,0.14777986]
[1728448115919,0.0155,62423.0,62422.0,0.50857986]
[1728448117013,0.0155,62423.0,62422.0,0.14777986]
[1728448121528,0.15957695,62423.0,62422.0,0.02777986]
[1728448121829,0.28223533,62423.0,62422.0,0.12]
[1728448124219,0.13815838,62423.0,62422.0,0.12]
[1728448125222,0.29825421,62423.0,62422.0,0.12]
[1728448125820,0.29825421,62423.0,62422.0,0.14729359]
[1728448126021,0.281818,62423.0,62422.0,0.14729359]
[1728448127219,0.13815838,62423.0,62422.0,0.14729359]
[1728448127823,0.29825421,62423.0,62422.0,0.14729359]
[1728448128533,0.2973765,62423.0,62422.0,0.14729359]
[1728448129227,0.13728067,62423.0,62422.0,0.14729359]
[1728448129733,0.0155,62423.0,62422.0,0.14729359]
[1728448133134,0.0155,62423.0,62422.0,0.18009359]
[1728448136630,0.19282244,62423.0,62422.0,0.18009359]
[1728448136824,0.13752975,62423.0,62422.0,0.10650658]
[1728448137239,0.13749806,62423.0,62422.0,0.10650658]
[1728448138834,0.13749806,62423.0,62422.0,0.43450658]
[1728448141240,0.08831217,62423.0,62422.0,0.43450658]
[1728448141628,0.08831217,62423.0,62422.0,0.91510658]
[1728448142245,0.08831217,62423.0,62422.0,0.38809359]
[1728448142434,0.08831217,62423.0,62422.0,0.53859359]
[1728448144846,0.0155,62423.0,62422.0,0.53859359]
[1728448146246,0.0155,62423.0,62422.0,0.50809359]
[1728448151451,0.0155,62423.0,62422.0,0.38809359]
[1728448151655,0.0155,62423.0,62422.0,0.43612896]
[1728448151848,0.04835391,62423.0,62422.0,0.38809359]
[1728448156539,0.04835391,62423.0,62422.0,0.02729359]
[1728448156746,0.04835391,62423.0,62422.0,0.3608]
[1728448157641,0.04833117,62423.0,62422.0,0.3608]
[1728448158249,0.04833117,62423.0,62421.0,0.080136]
[1728448158444,0.03283117,62422.0,62421.0,0.080136]
[1728448159046,0.03283117,62422.0,62421.0,0.10733818]
[1728448159751,0.0115,62423.0,62421.0,0.10733818]
[1728448160052,0.0105,62423.0,62421.0,0.10733818]
[1728448160250,0.004,62422.0,62421.0,0.10733818]
[1728448161248,0.007,62422.0,62421.0,0.10733818]
[1728448162455,0.003,62422.0,62421.0,0.10733818]
[1728448163053,0.007,62422.0,62421.0,0.10733818]
[1728448166857,0.03963052,62422.0,62421.0,0.10733818]
[1728448167761,0.007,62422.0,62421.0,0.10733818]
[1728448167960,0.0789272,62422.0,62421.0,0.10733818]
[1728448171866,0.03968277,62422.0,62421.0,0.10733818]
[1728448172261,0.04624425,62422.0,62421.0,0.10733818]
[1728448172464,0.07892702,62422.0,62421.0,0.10733818]
[1728448172659,0.07896564,62422.0,62421.0,0.10733818]
[1728448174164,0.12815581,62422.0,62421.0,0.10733818]
[1728448174462,0.12815525,62422.0,62421.0,0.10733818]
[1728448174856,0.007,62422.0,62421.0,0.10733818]
[1728448175766,0.007,62422.0,62421.0,0.02720218]
[1728448175961,0.007,62422.0,62417.0,0.12]
[1728448176168,0.007,62422.0,62417.0,0.16803537]
[1728448177155,0.242033,62424.0,62417.0,0.17003537]
[1728448177960,0.12,62418.0,62417.0,0.03002585]
[1728448179062,0.200141,62418.0,62417.0,0.05003537]
[1728448179263,0.200141,62418.0,62417.0,0.002]
[1728448180162,0.202141,62418.0,62414.0,0.04803537]
[1728448180364,0.205141,62418.0,62414.0,0.04803537]
[1728448180973,0.206141,62418.0,62414.0,0.04803537]
[1728448181173,0.206141,62418.0,62414.0,0.07621247]
[1728448181970,0.204141,62418.0,62414.0,0.07621247]
[1728448182162,0.207141,62418.0,62414.0,0.07621247]
[1728448182357,0.203141,62418.0,62414.0,0.07621247]
[1728448182563,0.204141,62418.0,62414.0,0.07621247]
[1728448182763,0.201141,62418.0,62414.0,0.07621247]
[1728448186968,0.12,62415.0,62414.0,0.0281771]
[1728448187168,0.12,62415.0,62413.0,0.04803537]
[1728448189078,0.121,62415.0,62411.0,0.24818437]
[1728448189579,0.12,62415.0,62411.0,0.24818437]
[1728448189768,0.12,62415.0,62413.0,0.001]
[1728448190071,0.12094338,62414.0,62413.0,0.001]
[1728448190271,0.12094338,62414.0,62411.0,0.203149]
[1728448190477,0.14411289,62412.0,62411.0,0.23112183]
[1728448190777,0.26505627,62412.0,62411.0,0.23112183]
[1728448192377,0.26505627,62412.0,62411.0,0.23412183]
[1728448192563,0.26504826,62412.0,62411.0,0.23412183]
[1728448192770,0.14411289,62412.0,62411.0,0.23412183]
[1728448193368,0.26504826,62412.0,62411.0,0.23412183]
[1728448193863,0.26504848,62412.0,62411.0,0.23412183]
[1728448195874,0.12093559,62412.0,62411.0,0.23412183]
[1728448196973,0.12,62415.0,62411.0,0.2821572]
[1728448198281,0.12,62415.0,62412.0,0.04803537]
[1728448198481,0.12,62415.0,62411.0,0.2821572]
[1728448199172,0.12,62415.0,62412.0,0.04803537]
[1728448199778,0.12,62415.0,62411.0,0.2821572]
[1728448200173,0.12,62415.0,62412.0,0.04803537]
[1728448200471,0.12,62415.0,62412.0,0.05003537]
[1728448200670,0.12,62415.0,62412.0,0.05203537]
[1728448201072,0.12,62416.0,62412.0,0.05203537]
[1728448201474,0.12,62416.0,62412.0,0.004]
[1728448202680,0.12,62416.0,62412.0,0.002]
[1728448202882,0.12,62416.0,62411.0,0.2821572]
[1728448203285,0.12,62416.0,62411.0,0.2791572]
[1728448203585,0.12,62416.0,62412.0,0.001]
[1728448203773,0.12,62416.0,62412.0,0.002]
[1728448203976,0.12,62416.0,62412.0,0.001]
[1728448204177,0.12,62416.0,62412.0,0.04903537]
[1728448204382,0.12,62413.0,62412.0,0.04903537]
[1728448204590,0.12,62413.0,62412.0,0.001]
[1728448205187,0.12,62413.0,62412.0,0.04903537]
[1728448205875,0.12,62413.0,62412.0,0.04803537]
[1728448207480,0.121,62413.0,62412.0,0.04803537]
[1728448208084,0.121,62413.0,62411.0,0.02797283]
[1728448208278,0.121,62413.0,62410.0,0.0316]
[1728448209190,0.121,62413.0,62410.0,0.09564566]
[1728448209492,0.121,62413.0,62411.0,0.001]
[1728448210186,0.12,62415.0,62411.0,0.12]
[1728448210384,0.12,62415.0,62413.0,0.04809851]
[1728448211977,0.26411289,62415.0,62411.0,0.202149]
[1728448212192,0.1208319,62414.0,62411.0,0.202149]
[1728448212387,0.1208319,62414.0,62411.0,0.201149]
[1728448214194,0.1208319,62414.0,62411.0,0.202149]
[1728448214996,0.14411289,62412.0,62411.0,0.202149]
[1728448215493,0.18336277,62412.0,62411.0,0.202149]
[1728448215795,0.14411289,62412.0,62411.0,0.202149]
[1728448218590,0.1833625,62412.0,62411.0,0.202149]
[1728448218997,0.14411289,62412.0,62411.0,0.202149]
[1728448219995,0.0112,62417.0,62411.0,0.31310918]
[1728448220299,0.0112,62417.0,62416.0,0.0801644]
[1728448220500,0.080141,62418.0,62416.0,0.19112458]
[1728448220798,0.080141,62418.0,62416.0,0.0801644]
[1728448221800,0.005,62417.0,62416.0,0.0801644]